[Event "MCR zen 2022"]
[Site "Hotel Opera, Jaroměřice nad Rokytnou, Czech Republic"]
[Date "????.??.??"]
[Round "4.1"]
[White "Pilsova, Karolina"]
[Black "Nemcova, Karin"]
[Result "1/2-1/2"]
[TimeControl "90 min/40 moves + 30 min + 30s/move"]
[WhiteElo "2229"]
[BlackElo "2181"]

1. e4 {[%clk 01:30:57]} {[%emt 00:00:02]} c5 {[%clk 01:30:54]} {[%emt
00:00:07]} 2. Nf3 {[%clk 01:31:20]} {[%emt 00:00:06]} d6 {[%clk 01:31:17]}
{[%emt 00:00:07]} 3. d4 {[%clk 01:31:45]} {[%emt 00:00:06]} cxd4 {[%clk
01:31:41]} {[%emt 00:00:06]} 4. Nxd4 {[%clk 01:32:09]} {[%emt 00:00:06]} Nf6
{[%clk 01:32:04]} {[%emt 00:00:06]} 5. Nc3 {[%clk 01:32:34]} {[%emt 00:00:05]}
a6 {[%clk 01:32:28]} {[%emt 00:00:07]} 6. Be3 {[%clk 01:32:37]} {[%emt
00:00:26]} e5 {[%clk 01:32:48]} {[%emt 00:00:10]} 7. Nf3 {[%clk 01:32:58]}
{[%emt 00:00:08]} Be7 {[%clk 01:32:43]} {[%emt 00:00:35]} 8. Bc4 {[%clk
01:33:12]} {[%emt 00:00:17]} O-O {[%clk 01:32:17]} {[%emt 00:00:55]} 9. O-O
{[%clk 01:32:27]} {[%emt 00:01:15]} Be6 {[%clk 01:31:56]} {[%emt 00:00:49]} 10.
Qe2 {[%clk 01:31:04]} {[%emt 00:01:53]} b5 {[%clk 01:29:52]} {[%emt 00:02:34]}
11. Bb3 {[%clk 01:26:58]} {[%emt 00:04:36]} h6 {[%clk 01:16:26]} {[%emt
00:13:57]} 12. Rfd1 {[%clk 01:15:44]} {[%emt 00:11:44]} Nbd7 {[%clk 01:16:14]}
{[%emt 00:00:41]} 13. Nh4 {[%clk 00:57:50]} {[%emt 00:18:23]} b4 {[%clk
01:07:00]} {[%emt 00:09:45]} 14. Na4 {[%clk 00:57:31]} {[%emt 00:00:49]} Nxe4
{[%clk 01:02:56]} {[%emt 00:04:33]} 15. Bxe6 {[%clk 00:53:57]} {[%emt
00:04:04]} fxe6 {[%clk 01:03:03]} {[%emt 00:00:24]} 16. Ng6 {[%clk 00:53:06]}
{[%emt 00:01:21]} Rf6 {[%clk 00:59:03]} {[%emt 00:04:29]} 17. Nxe7+ {[%clk
00:39:26]} {[%emt 00:14:10]} Qxe7 {[%clk 00:59:12]} {[%emt 00:00:11]} 18. Qc4
{[%clk 00:39:47]} {[%emt 00:00:20]} Ng5 {[%clk 00:44:56]} {[%emt 00:14:46]} 19.
Bxg5 {[%clk 00:36:38]} {[%emt 00:03:39]} hxg5 {[%clk 00:45:18]} {[%emt
00:00:09]} 20. Qxb4 {[%clk 00:37:02]} {[%emt 00:00:06]} Nc5 {[%clk 00:40:57]}
{[%emt 00:04:51]} 21. Nxc5 {[%clk 00:36:52]} {[%emt 00:00:40]} dxc5 {[%clk
00:41:20]} {[%emt 00:00:07]} 22. Qe4 {[%clk 00:36:43]} {[%emt 00:00:39]} Raf8
{[%clk 00:41:22]} {[%emt 00:00:28]} 23. Rd2 {[%clk 00:36:11]} {[%emt 00:01:02]}
Qf7 {[%clk 00:38:48]} {[%emt 00:03:05]} 24. Rf1 {[%clk 00:35:33]} {[%emt
00:01:08]} Rf5 {[%clk 00:38:38]} {[%emt 00:00:41]} 25. Qc6 {[%clk 00:33:49]}
{[%emt 00:02:13]} g4 {[%clk 00:36:39]} {[%emt 00:02:28]} 26. Qxc5 {[%clk
00:32:29]} {[%emt 00:01:50]} Rh5 {[%clk 00:35:12]} {[%emt 00:01:57]} 27. Qe3
{[%clk 00:30:05]} {[%emt 00:02:54]} Qg6 {[%clk 00:35:18]} {[%emt 00:00:24]} 28.
Rfd1 {[%clk 00:27:09]} {[%emt 00:03:26]} Rf3 {[%clk 00:33:52]} {[%emt
00:01:57]} 29. Rd8+ {[%clk 00:25:34]} {[%emt 00:02:05]} Kh7 {[%clk 00:34:14]}
{[%emt 00:00:07]} 30. Qd2 {[%clk 00:25:22]} {[%emt 00:00:43]} Rhf5 {[%clk
00:28:13]} {[%emt 00:06:31]} 31. Rc8 {[%clk 00:19:10]} {[%emt 00:06:42]} Rxf2
{[%clk 00:27:28]} {[%emt 00:01:15]} 32. Qxf2 {[%clk 00:14:52]} {[%emt
00:04:48]} Rxf2 {[%clk 00:27:49]} {[%emt 00:00:09]} 33. Kxf2 {[%clk 00:15:18]}
{[%emt 00:00:04]} Qf5+ {[%clk 00:27:53]} {[%emt 00:00:26]} 34. Kg1 {[%clk
00:14:39]} {[%emt 00:01:09]} e4 {[%clk 00:27:44]} {[%emt 00:00:39]} 35. Rc3
{[%clk 00:12:23]} {[%emt 00:02:46]} e3 {[%clk 00:23:39]} {[%emt 00:04:35]} 36.
Rxe3 {[%clk 00:12:20]} {[%emt 00:00:33]} Qxc2 {[%clk 00:23:59]} {[%emt
00:00:09]} 37. Rde1 {[%clk 00:12:35]} {[%emt 00:00:15]} Qxb2 {[%clk 00:24:20]}
{[%emt 00:00:10]} 38. a3 {[%clk 00:08:01]} {[%emt 00:05:04]} a5 {[%clk
00:21:25]} {[%emt 00:03:25]} 39. R1e2 {[%clk 00:06:58]} {[%emt 00:01:33]} Qd4
{[%clk 00:21:38]} {[%emt 00:00:17]} 40. Kh1 {[%clk 00:03:02]} {[%emt 00:04:25]}
e5 {[%clk 00:19:11]} {[%emt 00:02:58]} 41. Re1 {[%clk 00:02:13]} {[%emt
00:01:19]} Qa4 {[%clk 00:17:35]} {[%emt 00:02:04]} 42. h3 {[%clk 00:27:20]}
{[%emt 00:05:24]} gxh3 {[%clk 00:44:28]} {[%emt 00:03:37]} 43. Rxh3+ {[%clk
00:27:43]} {[%emt 00:00:07]} Kg6 {[%clk 00:44:37]} {[%emt 00:00:21]} 44. Rhe3
{[%clk 00:17:08]} {[%emt 00:11:05]} 1/2-1/2

[Event "MCR zen 2022"]
[Site "Hotel Opera, Jaroměřice nad Rokytnou, Czech Republic"]
[Date "????.??.??"]
[Round "4.2"]
[White "Petrova, Kristyna"]
[Black "Zelbova, Lada"]
[Result "1-0"]
[TimeControl "90 min/40 moves + 30 min + 30s/move"]
[WhiteElo "2264"]
[BlackElo "1967"]

1. e4 {[%clk 01:30:57]} {[%emt 00:00:02]} c5 {[%clk 01:30:48]} {[%emt
00:00:12]} 2. Be2 {[%clk 01:31:21]} {[%emt 00:00:06]} Nc6 {[%clk 01:29:27]}
{[%emt 00:01:52]} 3. f4 {[%clk 01:31:36]} {[%emt 00:00:15]} e6 {[%clk
01:28:23]} {[%emt 00:01:33]} 4. Nf3 {[%clk 01:31:43]} {[%emt 00:00:23]} d5
{[%clk 01:26:04]} {[%emt 00:02:47]} 5. d3 {[%clk 01:32:01]} {[%emt 00:00:12]}
g6 {[%clk 01:25:33]} {[%emt 00:01:00]} 6. O-O {[%clk 01:31:56]} {[%emt
00:00:36]} Bg7 {[%clk 01:25:23]} {[%emt 00:00:40]} 7. c3 {[%clk 01:31:22]}
{[%emt 00:01:03]} Nge7 {[%clk 01:23:34]} {[%emt 00:02:19]} 8. Qe1 {[%clk
01:30:22]} {[%emt 00:01:30]} O-O {[%clk 01:22:50]} {[%emt 00:01:15]} 9. Be3
{[%clk 01:21:48]} {[%emt 00:09:04]} b6 {[%clk 01:19:43]} {[%emt 00:03:38]} 10.
Na3 {[%clk 01:19:49]} {[%emt 00:02:29]} Ba6 {[%clk 01:10:32]} {[%emt 00:09:41]}
11. Rd1 {[%clk 01:14:55]} {[%emt 00:05:24]} Qc7 {[%clk 01:04:29]} {[%emt
00:06:33]} 12. e5 {[%clk 01:00:23]} {[%emt 00:15:02]} Nf5 {[%clk 00:56:41]}
{[%emt 00:08:17]} 13. Bf2 {[%clk 00:55:26]} {[%emt 00:05:26]} h5 {[%clk
00:52:20]} {[%emt 00:04:51]} 14. d4 {[%clk 00:48:13]} {[%emt 00:07:44]} c4
{[%clk 00:52:05]} {[%emt 00:00:46]} 15. h3 {[%clk 00:46:25]} {[%emt 00:02:18]}
b5 {[%clk 00:44:28]} {[%emt 00:08:06]} 16. Nc2 {[%clk 00:45:49]} {[%emt
00:01:06]} Bc8 {[%clk 00:44:04]} {[%emt 00:00:54]} 17. g4 {[%clk 00:44:42]}
{[%emt 00:01:37]} hxg4 {[%clk 00:44:23]} {[%emt 00:00:11]} 18. hxg4 {[%clk
00:45:10]} {[%emt 00:00:01]} Nh6 {[%clk 00:44:41]} {[%emt 00:00:12]} 19. Ne3
{[%clk 00:41:53]} {[%emt 00:03:47]} b4 {[%clk 00:41:21]} {[%emt 00:03:50]} 20.
Bh4 {[%clk 00:38:02]} {[%emt 00:04:21]} bxc3 {[%clk 00:37:25]} {[%emt
00:04:26]} 21. bxc3 {[%clk 00:38:30]} {[%emt 00:00:02]} Kh7 {[%clk 00:33:45]}
{[%emt 00:04:09]} 22. Bg5 {[%clk 00:32:50]} {[%emt 00:06:11]} Rh8 {[%clk
00:33:06]} {[%emt 00:01:09]} 23. Kg2 {[%clk 00:31:52]} {[%emt 00:01:28]} Kg8
{[%clk 00:32:54]} {[%emt 00:00:43]} 24. Rb1 {[%clk 00:25:54]} {[%emt 00:06:28]}
Rb8 {[%clk 00:28:52]} {[%emt 00:04:31]} 25. Rh1 {[%clk 00:24:40]} {[%emt
00:01:43]} Kf8 {[%clk 00:27:53]} {[%emt 00:01:29]} 26. Qc1 {[%clk 00:21:06]}
{[%emt 00:04:04]} Rxb1 {[%clk 00:26:14]} {[%emt 00:02:10]} 27. Qxb1 {[%clk
00:21:34]} {[%emt 00:00:02]} Qb8 {[%clk 00:21:45]} {[%emt 00:04:59]} 28. Qc1
{[%clk 00:14:50]} {[%emt 00:07:15]} Ng8 {[%clk 00:20:27]} {[%emt 00:01:48]} 29.
Qa3+ {[%clk 00:08:32]} {[%emt 00:06:48]} Ke8 {[%clk 00:19:32]} {[%emt
00:01:24]} 30. Rxh8 {[%clk 00:08:50]} {[%emt 00:00:12]} Bxh8 {[%clk 00:19:55]}
{[%emt 00:00:07]} 31. f5 {[%clk 00:09:10]} {[%emt 00:00:10]} exf5 {[%clk
00:16:42]} {[%emt 00:03:44]} 32. gxf5 {[%clk 00:09:10]} {[%emt 00:00:30]} Bxf5
{[%clk 00:16:51]} {[%emt 00:00:20]} 33. Nxd5 {[%clk 00:07:37]} {[%emt
00:02:04]} Bg7 {[%clk 00:14:44]} {[%emt 00:02:37]} 34. Bxc4 {[%clk 00:06:44]}
{[%emt 00:01:24]} Bf8 {[%clk 00:13:18]} {[%emt 00:01:56]} 35. Qa4 {[%clk
00:06:37]} {[%emt 00:00:37]} Bd7 {[%clk 00:11:35]} {[%emt 00:02:13]} 36. Qb3
{[%clk 00:06:08]} {[%emt 00:00:58]} Be6 {[%clk 00:02:38]} {[%emt 00:09:26]} 37.
Qxb8+ {[%clk 00:06:18]} {[%emt 00:00:20]} Nxb8 {[%clk 00:03:03]} {[%emt
00:00:05]} 38. Bb5+ {[%clk 00:06:35]} {[%emt 00:00:13]} Nd7 {[%clk 00:03:25]}
{[%emt 00:00:09]} 39. Nc7# {[%emt 00:00:05]} 1-0

[Event "MCR zen 2022"]
[Site "Hotel Opera, Jaroměřice nad Rokytnou, Czech Republic"]
[Date "????.??.??"]
[Round "4.3"]
[White "Lhotska, Anna"]
[Black "Richterova, Natasa"]
[Result "1-0"]
[TimeControl "90 min/40 moves + 30 min + 30s/move"]
[WhiteElo "2029"]
[BlackElo "2181"]

1. e4 {[%clk 01:30:57]} {[%emt 00:00:02]} e5 {[%clk 01:30:51]} {[%emt
00:00:09]} 2. Nf3 {[%clk 01:31:23]} {[%emt 00:00:05]} Nc6 {[%clk 01:31:18]}
{[%emt 00:00:04]} 3. Bc4 {[%clk 01:31:47]} {[%emt 00:00:06]} Bc5 {[%clk
01:31:12]} {[%emt 00:00:35]} 4. O-O {[%clk 01:32:02]} {[%emt 00:00:15]} Nf6
{[%clk 01:31:19]} {[%emt 00:00:24]} 5. d4 {[%clk 01:31:41]} {[%emt 00:00:51]}
Nxd4 {[%clk 01:27:34]} {[%emt 00:04:12]} 6. Nxe5 {[%clk 01:29:07]} {[%emt
00:03:03]} O-O {[%clk 01:24:28]} {[%emt 00:03:36]} 7. Be3 {[%clk 01:20:03]}
{[%emt 00:09:35]} Ne6 {[%clk 01:13:17]} {[%emt 00:11:42]} 8. Bxe6 {[%clk
01:16:33]} {[%emt 00:04:00]} Bxe3 {[%clk 01:13:35]} {[%emt 00:00:11]} 9. Bxf7+
{[%clk 01:15:44]} {[%emt 00:01:19]} Kh8 {[%clk 01:08:40]} {[%emt 00:05:25]} 10.
Bb3 {[%clk 01:10:27]} {[%emt 00:05:47]} Qe7 {[%clk 01:08:36]} {[%emt 00:00:34]}
11. Nf7+ {[%clk 01:09:53]} {[%emt 00:01:04]} Rxf7 {[%clk 01:09:01]} {[%emt
00:00:06]} 12. Bxf7 {[%clk 01:10:16]} {[%emt 00:00:06]} Bf4 {[%clk 01:08:19]}
{[%emt 00:01:12]} 13. Bc4 {[%clk 01:00:19]} {[%emt 00:10:27]} d5 {[%clk
00:56:25]} {[%emt 00:12:24]} 14. exd5 {[%clk 00:56:10]} {[%emt 00:04:39]} Bg4
{[%clk 00:52:32]} {[%emt 00:04:23]} 15. Qd3 {[%clk 00:51:29]} {[%emt 00:05:11]}
Qe5 {[%clk 00:44:58]} {[%emt 00:08:05]} 16. h3 {[%clk 00:38:17]} {[%emt
00:13:41]} Bf5 {[%clk 00:39:38]} {[%emt 00:05:50]} 17. Qc3 {[%clk 00:34:51]}
{[%emt 00:03:56]} Qd6 {[%clk 00:37:38]} {[%emt 00:02:30]} 18. Nd2 {[%clk
00:34:20]} {[%emt 00:01:01]} Rf8 {[%clk 00:31:54]} {[%emt 00:06:14]} 19. Rae1
{[%clk 00:31:40]} {[%emt 00:03:11]} c6 {[%clk 00:31:07]} {[%emt 00:01:16]} 20.
Re2 {[%clk 00:27:36]} {[%emt 00:04:34]} cxd5 {[%clk 00:31:22]} {[%emt
00:00:15]} 21. Bd3 {[%clk 00:27:22]} {[%emt 00:00:44]} Bd7 {[%clk 00:20:08]}
{[%emt 00:11:45]} 22. Rfe1 {[%clk 00:24:52]} {[%emt 00:02:59]} a6 {[%clk
00:20:27]} {[%emt 00:00:11]} 23. Nb3 {[%clk 00:24:42]} {[%emt 00:00:40]} b6
{[%clk 00:15:14]} {[%emt 00:05:44]} 24. Nd4 {[%clk 00:21:15]} {[%emt 00:03:56]}
Rc8 {[%clk 00:14:24]} {[%emt 00:01:20]} 25. Qb3 {[%clk 00:21:13]} {[%emt
00:00:32]} b5 {[%clk 00:13:53]} {[%emt 00:01:01]} 26. Nf5 {[%clk 00:19:57]}
{[%emt 00:01:45]} Qc5 {[%clk 00:13:09]} {[%emt 00:01:15]} 27. c3 {[%clk
00:18:55]} {[%emt 00:01:32]} Rf8 {[%clk 00:12:12]} {[%emt 00:01:27]} 28. Nd4
{[%clk 00:18:46]} {[%emt 00:00:39]} Bb8 {[%clk 00:11:36]} {[%emt 00:01:06]} 29.
Qb4 {[%clk 00:15:59]} {[%emt 00:03:18]} Qc8 {[%clk 00:12:05]} 30. Ne6 {[%clk
00:15:38]} {[%emt 00:00:50]} Re8 {[%clk 00:09:15]} {[%emt 00:03:20]} 31. Ng5
{[%clk 00:14:43]} {[%emt 00:01:25]} Rxe2 {[%clk 00:05:56]} {[%emt 00:03:50]} 32.
Rxe2 {[%clk 00:14:57]} {[%emt 00:00:15]} Ba7 {[%clk 00:05:34]} {[%emt
00:00:52]} 33. Qh4 {[%clk 00:14:28]} {[%emt 00:00:59]} Bf5 {[%clk 00:03:54]}
{[%emt 00:02:11]} 34. Nf7+ {[%clk 00:14:10]} {[%emt 00:00:47]} Kg8 {[%clk
00:04:15]} {[%emt 00:00:08]} 35. Nd6 {[%clk 00:14:26]} {[%emt 00:00:14]} 1-0

[Event "MCR zen 2022"]
[Site "Hotel Opera, Jaroměřice nad Rokytnou, Czech Republic"]
[Date "????.??.??"]
[Round "4.4"]
[White "Sikorova, Olga"]
[Black "Trasakova, Adela"]
[Result "1-0"]
[TimeControl "90 min/40 moves + 30 min + 30s/move"]
[WhiteElo "2173"]
[BlackElo "1842"]

1. c4 {[%clk 01:30:57]} {[%emt 00:00:02]} c6 {[%clk 01:30:59]} {[%emt
00:00:01]} 2. g3 {[%clk 01:31:01]} {[%emt 00:00:27]} Nf6 {[%clk 01:31:27]}
{[%emt 00:00:02]} 3. Nf3 {[%clk 01:31:20]} {[%emt 00:00:11]} d5 {[%clk
01:31:55]} {[%emt 00:00:02]} 4. Bg2 {[%clk 01:31:31]} {[%emt 00:00:19]} dxc4
{[%clk 01:32:21]} {[%emt 00:00:04]} 5. O-O {[%clk 01:31:46]} {[%emt 00:00:15]}
Nbd7 {[%clk 01:32:46]} {[%emt 00:00:06]} 6. Na3 {[%clk 01:31:24]} {[%emt
00:00:51]} Nb6 {[%clk 01:33:09]} {[%emt 00:00:07]} 7. Qc2 {[%clk 01:31:08]}
{[%emt 00:00:47]} Be6 {[%clk 01:33:30]} {[%emt 00:00:09]} 8. Ne5 {[%clk
01:28:42]} {[%emt 00:02:53]} Qd4 {[%clk 01:29:20]} {[%emt 00:04:41]} 9. Nxc6
{[%clk 01:28:57]} {[%emt 00:00:15]} bxc6 {[%clk 01:29:28]} {[%emt 00:00:22]} 10.
Bxc6+ {[%clk 01:29:21]} {[%emt 00:00:06]} Nfd7 {[%clk 01:27:34]} {[%emt
00:02:23]} 11. Nb5 {[%clk 01:16:37]} {[%emt 00:13:14]} Qc5 {[%clk 01:13:12]}
{[%emt 00:14:52]} 12. Nc7+ {[%clk 01:14:15]} {[%emt 00:02:52]} Kd8 {[%clk
01:13:41]} {[%emt 00:00:02]} 13. Nxe6+ {[%clk 01:14:20]} {[%emt 00:00:25]} fxe6
{[%clk 01:14:09]} {[%emt 00:00:02]} 14. Bxa8 {[%clk 01:14:26]} {[%emt
00:00:24]} Nxa8 {[%clk 01:14:22]} {[%emt 00:00:17]} 15. d3 {[%clk 01:08:07]}
{[%emt 00:06:49]} cxd3 {[%clk 01:09:00]} {[%emt 00:05:51]} 16. Qxd3 {[%clk
01:06:28]} {[%emt 00:02:09]} Qd6 {[%clk 01:03:34]} {[%emt 00:05:56]} 17. Qc2
{[%clk 01:03:45]} {[%emt 00:03:14]} Nab6 {[%clk 00:53:46]} {[%emt 00:10:18]} 18.
Be3 {[%clk 00:59:22]} {[%emt 00:04:53]} Ke8 {[%clk 00:48:42]} {[%emt 00:05:34]}
19. Rfd1 {[%clk 00:56:03]} {[%emt 00:03:48]} Qb8 {[%clk 00:47:49]} {[%emt
00:01:24]} 20. Rac1 {[%clk 00:51:37]} {[%emt 00:04:57]} Kf7 {[%clk 00:44:56]}
{[%emt 00:03:22]} 21. Qc7 {[%clk 00:51:22]} {[%emt 00:00:44]} Qxc7 {[%clk
00:41:17]} {[%emt 00:04:09]} 22. Rxc7 {[%clk 00:51:51]} {[%emt 00:00:02]} Nf6
{[%clk 00:41:12]} {[%emt 00:00:34]} 23. Rxa7 {[%clk 00:45:29]} {[%emt
00:06:52]} Nc4 {[%clk 00:38:59]} {[%emt 00:02:43]} 24. Bc5 {[%clk 00:41:37]}
{[%emt 00:04:22]} Nxb2 {[%clk 00:35:29]} {[%emt 00:03:59]} 25. Rc1 {[%clk
00:37:08]} {[%emt 00:04:59]} g6 {[%clk 00:33:14]} {[%emt 00:02:45]} 26. Ba3
{[%clk 00:36:57]} {[%emt 00:00:42]} Bh6 {[%clk 00:32:58]} {[%emt 00:00:45]} 27.
Rxe7+ {[%clk 00:36:15]} {[%emt 00:01:12]} Kg8 {[%clk 00:33:08]} {[%emt
00:00:20]} 28. Rc8+ {[%clk 00:35:54]} {[%emt 00:00:52]} Bf8 {[%clk 00:33:33]}
{[%emt 00:00:04]} 29. Rb7 {[%clk 00:34:37]} {[%emt 00:01:47]} 1-0

[Event "MCR zen 2022"]
[Site "Hotel Opera, Jaroměřice nad Rokytnou, Czech Republic"]
[Date "????.??.??"]
[Round "4.5"]
[White "Novosadova, Kristyna"]
[Black "Koubova, Anna Marie"]
[Result "0-1"]
[TimeControl "90 min/40 moves + 30 min + 30s/move"]
[WhiteClock "00:01:22"]
[BlackClock "00:01:09"]
[WhiteElo "2147"]
[BlackElo "2115"]

1. e4 {[%clk 01:30:56]} {[%emt 00:00:04]} e6 {[%clk 01:30:43]} {[%emt
00:00:17]} 2. d4 {[%clk 01:31:11]} {[%emt 00:00:15]} d5 {[%clk 01:31:02]}
{[%emt 00:00:11]} 3. Nc3 {[%clk 01:31:36]} {[%emt 00:00:05]} Nc6 {[%clk
01:31:00]} {[%emt 00:00:31]} 4. Nge2 {[%clk 01:26:12]} {[%emt 00:05:52]} dxe4
{[%clk 01:19:35]} {[%emt 00:11:56]} 5. Nxe4 {[%clk 01:26:29]} {[%emt 00:00:13]}
Nf6 {[%clk 01:19:16]} {[%emt 00:00:48]} 6. Nxf6+ {[%clk 01:25:50]} {[%emt
00:01:09]} Qxf6 {[%clk 01:19:27]} {[%emt 00:00:19]} 7. h4 {[%clk 01:25:49]}
{[%emt 00:00:30]} Bd6 {[%clk 01:05:43]} {[%emt 00:14:15]} 8. Bg5 {[%clk
01:23:29]} {[%emt 00:02:50]} Qf5 {[%clk 01:04:00]} {[%emt 00:02:12]} 9. Nc3
{[%clk 01:19:55]} {[%emt 00:04:04]} e5 {[%clk 01:01:11]} {[%emt 00:03:20]} 10.
Bd3 {[%clk 01:18:34]} {[%emt 00:01:51]} Qg4 {[%clk 01:01:00]} {[%emt 00:00:40]}
11. d5 {[%clk 01:12:20]} {[%emt 00:06:45]} Qxd1+ {[%clk 00:56:30]} {[%emt
00:05:00]} 12. Rxd1 {[%clk 01:12:47]} {[%emt 00:00:02]} Nb4 {[%clk 00:55:31]}
{[%emt 00:01:29]} 13. Bb5+ {[%clk 01:11:30]} {[%emt 00:01:48]} Kf8 {[%clk
00:54:29]} {[%emt 00:01:33]} 14. Ba4 {[%clk 01:10:04]} {[%emt 00:01:55]} f6
{[%clk 00:52:52]} {[%emt 00:02:07]} 15. Be3 {[%clk 01:09:52]} {[%emt 00:00:42]}
Bf5 {[%clk 00:51:41]} {[%emt 00:01:41]} 16. Rd2 {[%clk 01:09:55]} {[%emt
00:00:26]} Na6 {[%clk 00:46:39]} {[%emt 00:05:34]} 17. Bb5 {[%clk 01:05:58]}
{[%emt 00:04:27]} Nc5 {[%clk 00:43:03]} {[%emt 00:04:06]} 18. f3 {[%clk
01:04:51]} {[%emt 00:01:36]} h5 {[%clk 00:40:51]} {[%emt 00:02:42]} 19. O-O
{[%clk 01:03:23]} {[%emt 00:01:59]} a6 {[%clk 00:34:08]} {[%emt 00:07:14]} 20.
Be2 {[%clk 01:03:29]} {[%emt 00:00:21]} Kf7 {[%clk 00:32:09]} {[%emt 00:02:30]}
21. f4 {[%clk 00:54:10]} {[%emt 00:09:50]} exf4 {[%clk 00:25:53]} {[%emt
00:06:47]} 22. Bxf4 {[%clk 00:54:22]} {[%emt 00:00:17]} Ne4 {[%clk 00:25:07]}
{[%emt 00:01:16]} 23. Nxe4 {[%clk 00:43:55]} {[%emt 00:10:57]} Bxe4 {[%clk
00:25:24]} {[%emt 00:00:13]} 24. Bxd6 {[%clk 00:34:39]} {[%emt 00:09:46]} cxd6
{[%clk 00:25:48]} {[%emt 00:00:06]} 25. Bf3 {[%clk 00:30:08]} {[%emt 00:05:01]}
Rae8 {[%clk 00:23:13]} {[%emt 00:03:05]} 26. c3 {[%clk 00:21:53]} {[%emt
00:08:45]} Re5 {[%clk 00:14:20]} {[%emt 00:09:21]} 27. Rd4 {[%clk 00:18:49]}
{[%emt 00:03:36]} Rhe8 {[%clk 00:13:47]} {[%emt 00:01:02]} 28. a4 {[%clk
00:13:18]} {[%emt 00:06:03]} b5 {[%clk 00:09:38]} {[%emt 00:04:39]} 29. axb5
{[%clk 00:12:18]} {[%emt 00:01:30]} axb5 {[%clk 00:10:01]} {[%emt 00:00:07]} 30.
Rb4 {[%clk 00:10:47]} {[%emt 00:02:01]} Bxf3 {[%clk 00:09:52]} {[%emt
00:00:39]} 31. Rxf3 {[%clk 00:08:37]} {[%emt 00:02:40]} Rxd5 {[%clk 00:10:11]}
{[%emt 00:00:12]} 32. c4 {[%clk 00:07:06]} {[%emt 00:02:01]} bxc4 {[%clk
00:06:51]} {[%emt 00:03:50]} 33. Rxc4 {[%clk 00:07:31]} {[%emt 00:00:06]} Re7
{[%clk 00:07:10]} {[%emt 00:00:11]} 34. b4 {[%clk 00:07:18]} {[%emt 00:00:43]}
Rb7 {[%clk 00:07:18]} {[%emt 00:00:21]} 35. Kh2 {[%clk 00:06:14]} {[%emt
00:01:35]} Rdb5 {[%clk 00:07:21]} {[%emt 00:00:27]} 36. Rff4 {[%clk 00:05:57]}
{[%emt 00:00:47]} d5 {[%clk 00:02:58]} {[%emt 00:04:53]} 37. Rcd4 {[%clk
00:04:36]} {[%emt 00:01:50]} Ke6 {[%clk 00:02:22]} {[%emt 00:01:07]} 38. g4
{[%clk 00:05:03]} {[%emt 00:00:03]} hxg4 {[%clk 00:01:55]} {[%emt 00:00:56]} 39.
Rxg4 {[%clk 00:04:45]} {[%emt 00:00:48]} Ke5 {[%clk 00:01:38]} {[%emt
00:00:47]} 40. h5 {[%clk 00:03:41]} {[%emt 00:01:34]} f5 {[%clk 00:01:27]}
{[%emt 00:00:41]} 41. Rgf4 {[%clk 00:02:44]} {[%emt 00:01:26]} Ra7 {[%clk
00:27:09]} {[%emt 00:04:48]} 42. Kg3 {[%clk 00:32:24]} {[%emt 00:00:50]} Ra3+
{[%clk 00:21:42]} {[%emt 00:05:57]} 43. Kf2 {[%clk 00:27:13]} {[%emt 00:05:40]}
Rh3 {[%clk 00:17:21]} {[%emt 00:04:52]} 44. Rh4 {[%clk 00:27:35]} {[%emt
00:00:08]} Rxh4 {[%clk 00:17:00]} {[%emt 00:00:52]} 45. Rxh4 {[%clk 00:28:03]}
{[%emt 00:00:02]} d4 {[%clk 00:17:14]} {[%emt 00:00:16]} 46. h6 {[%clk
00:28:12]} {[%emt 00:00:21]} gxh6 {[%clk 00:17:20]} {[%emt 00:00:25]} 47. Rxh6
{[%clk 00:28:37]} {[%emt 00:00:04]} Rxb4 {[%clk 00:17:40]} {[%emt 00:00:10]} 48.
Rh8 {[%clk 00:27:26]} {[%emt 00:01:40]} Rb3 {[%clk 00:13:10]} {[%emt 00:05:00]}
49. Rd8 {[%clk 00:27:25]} {[%emt 00:00:31]} Ke4 {[%clk 00:12:44]} {[%emt
00:00:56]} 50. Re8+ {[%clk 00:26:43]} {[%emt 00:01:12]} Kf4 {[%clk 00:08:16]}
{[%emt 00:04:58]} 51. Rh8 {[%clk 00:25:12]} {[%emt 00:02:02]} Rb2+ {[%clk
00:08:19]} {[%emt 00:00:27]} 52. Ke1 {[%clk 00:25:35]} {[%emt 00:00:05]} Ke3
{[%clk 00:07:43]} {[%emt 00:01:07]} 53. Re8+ {[%clk 00:24:26]} {[%emt
00:01:40]} Kd3 {[%clk 00:06:54]} {[%emt 00:01:19]} 54. Rf8 {[%clk 00:23:08]}
{[%emt 00:01:47]} Re2+ {[%clk 00:02:17]} {[%emt 00:05:08]} 55. Kf1 {[%clk
00:21:39]} {[%emt 00:01:59]} Re5 {[%clk 00:02:38]} {[%emt 00:00:09]} 56. Kf2
{[%clk 00:21:53]} {[%emt 00:00:17]} Rd5 {[%clk 00:02:29]} {[%emt 00:00:39]} 57.
Ra8 {[%clk 00:21:40]} {[%emt 00:00:43]} Kc3 {[%clk 00:02:05]} {[%emt 00:00:53]}
58. Rc8+ {[%clk 00:20:49]} {[%emt 00:01:21]} Kd2 {[%clk 00:01:58]} {[%emt
00:00:37]} 59. Ra8 {[%clk 00:19:23]} {[%emt 00:01:56]} Rc5 {[%clk 00:02:10]}
{[%emt 00:00:18]} 60. Ra2+ {[%clk 00:19:02]} {[%emt 00:00:52]} Kc1 {[%clk
00:01:10]} {[%emt 00:01:30]} 61. Ra4 {[%clk 00:17:15]} {[%emt 00:02:17]} Rd5
{[%clk 00:01:11]} {[%emt 00:00:29]} 62. Rc4+ {[%clk 00:15:26]} {[%emt
00:02:19]} Kd2 {[%clk 00:01:27]} {[%emt 00:00:13]} 63. Ra4 {[%clk 00:15:13]}
{[%emt 00:00:44]} d3 {[%clk 00:01:15]} {[%emt 00:00:42]} 64. Ra8 {[%clk
00:11:13]} {[%emt 00:04:30]} Kc2 {[%clk 00:01:11]} {[%emt 00:00:34]} 65. Rc8+
{[%clk 00:11:11]} {[%emt 00:00:32]} Kd1 {[%clk 00:01:18]} {[%emt 00:00:22]} 66.
Rc7 {[%clk 00:07:50]} {[%emt 00:03:51]} d2 {[%clk 00:01:05]} {[%emt 00:00:44]}
67. Rc8 {[%clk 00:07:56]} {[%emt 00:00:24]} Rd3 {[%clk 00:00:45]} {[%emt
00:00:49]} 68. Rc7 {[%clk 00:08:11]} {[%emt 00:00:15]} Rd5 {[%clk 00:00:57]}
{[%emt 00:00:18]} 69. Rc8 {[%clk 00:07:53]} {[%emt 00:00:48]} Rd4 {[%clk
00:01:03]} {[%emt 00:00:23]} 70. Rc5 {[%clk 00:02:57]} {[%emt 00:05:27]} Rf4+
{[%clk 00:01:15]} {[%emt 00:00:18]} 71. Ke3 {[%clk 00:02:04]} {[%emt 00:01:23]}
Rf1 {[%clk 00:00:53]} {[%emt 00:00:51]} 72. Rd5 {[%clk 00:02:00]} {[%emt
00:00:34]} f4+ {[%clk 00:00:51]} {[%emt 00:00:32]} 73. Kd3 {[%clk 00:02:24]}
{[%emt 00:00:06]} Rf3+ {[%clk 00:00:58]} {[%emt 00:00:23]} 74. Ke4 {[%clk
00:02:06]} {[%emt 00:00:48]} Rc3 {[%clk 00:01:09]} {[%emt 00:00:20]} 0-1